fUST/lending_fUST_20260226
["ID","MTS","AMOUNT","RATE_DAILY","PERIOD"]
[406655330,1772039260034,-140.11698422,0.00012991,2]
[406655331,1772039261462,-392.1612452,0.00012991,2]
[406655332,1772039261485,-532.27822942,0.00012991,2]
[406655333,1772039261506,-532.27822942,0.00012991,2]
[406655334,1772039261528,-532.27822942,0.00012991,2]
[406655335,1772039261549,-11.00406654,0.00012991,2]
[406655336,1772039261925,-521.27416288,0.00012991,2]
[406655337,1772039261951,-500.0,0.00012991,2]
[406655338,1772039280262,274.5,9.99e-05,2]
[406655339,1772039304572,-582.97139412,0.00012991,2]
[406655340,1772039304596,-300.0,0.00013254,2]
[406655341,1772039304853,-300.0,0.00013254,2]
[406655342,1772039304877,-300.0,0.00013272,2]
[406655343,1772039304898,-268.11186324,0.00013273,2]
[406655344,1772039304920,-248.91674264,0.00013273,2]
[406655345,1772039306602,-251.08325736,0.00013273,2]
[406655346,1772039306626,-500.0,0.00013273,2]
[406655347,1772039306648,-192.93060234,0.00013273,2]
[406655348,1772039306670,-500.0,0.00013273,2]
[406655349,1772039306694,-555.9861403,0.00013699,2]
[406655350,1772039308072,-519.3839697,0.00013699,2]
[406655351,1772039308095,-256.7839229,0.00013699,2]
[406655352,1772039308117,-500.0,0.00013699,2]
[406655353,1772039308143,-150.0,0.000137,2]
[406655354,1772039308166,-573.8321074,0.00013821,2]
[406655355,1772039309675,-426.1678926,0.00013821,2]
[406655356,1772039368888,151.0,0.00012,2]
[406655357,1772039371942,-338.23827644,0.00013273,2]
[406655358,1772039371964,-500.0,0.00013699,2]
[406655359,1772039371987,-200.0,0.00014171,2]
[406655360,1772039408937,-1123.48110374,0.00014247,2]
[406655361,1772039408963,-150.0,0.00014268,2]
[406655362,1772039408986,-1454.75265259,0.00014368,2]
[406655363,1772039409009,-1279.134509,0.0001452,2]
[406655364,1772039409033,-492.63173467,0.00014777,2]
[406655385,1772039431850,-151.0,0.00014777,2]
[406655386,1772039431860,-263.13163246,0.00014777,2]
[406655388,1772039431870,-279.90247713,0.00014777,2]
[406655390,1772039431879,-360.53249335,0.000149,2]
[406655391,1772039431888,-150.0,0.000149,2]
[406655393,1772039431898,-1200.0,0.00014999,2]
[406655395,1772039431907,-868.49988555,0.00015,2]
[406655397,1772039431916,-455.13290146,0.00015,2]
[406655398,1772039431927,-104.68035396,0.00015,2]
[406655399,1772039431937,-163.29,0.0001534,2]
[406655400,1772039431947,-150.0,0.000154,2]
[406655401,1772039431956,-376.55568771,0.0001565,2]
[406655402,1772039431967,-137.11109399,0.0001565,2]
[406655403,1772039431977,-300.0,0.00015692,2]
[406655404,1772039431988,-1305.87259986,0.00015693,2]
[406655405,1772039431997,-2139.586897,0.000157,2]
[406655406,1772039432007,-3036.91329408,0.000157,2]
[406655408,1772039432015,-217.10286762,0.00016,2]
[406655410,1772039432025,-150.0,0.00016,2]
[406655412,1772039432034,-177.0,0.00016268,2]
[406655414,1772039432043,-1065.0,0.00016499,2]
[406655416,1772039432052,-2132.46248953,0.0001685,2]
[406655487,1772039437933,-6971.79003877,0.0001685,2]
[406655488,1772039437944,-1338.86,0.000169,2]
[406655489,1772039437954,-500.0,0.00016999,2]
[406655490,1772039437965,-500.0,0.00016999,2]
[406655491,1772039437975,-500.0,0.00016999,2]
[406655492,1772039437985,-500.0,0.00016999,2]
[406655493,1772039437999,-500.0,0.00016999,2]
[406655494,1772039438010,-500.0,0.00016999,2]
[406655495,1772039438020,-500.0,0.00016999,2]
[406655496,1772039438031,-500.0,0.00016999,2]
[406655497,1772039438041,-500.0,0.00016999,2]
[406655498,1772039438051,-500.0,0.00016999,2]
[406655499,1772039438061,-500.0,0.00016999,2]
[406655500,1772039438071,-500.0,0.00016999,2]
[406655501,1772039438080,-440.73446784,0.00016999,2]
[406655502,1772039438090,-500.0,0.00016999,2]
[406655503,1772039438100,-500.0,0.00016999,2]
[406655504,1772039438110,-500.0,0.00016999,2]
[406655505,1772039438119,-500.0,0.00016999,2]
[406655506,1772039438128,-526.25546646,0.00016999,2]
[406655507,1772039438137,-500.0,0.00016999,2]
[406655508,1772039438146,-500.0,0.00016999,2]
[406655509,1772039438155,-500.0,0.00016999,2]
[406655510,1772039438164,-500.0,0.00016999,2]
[406655511,1772039438173,-500.0,0.00016999,2]
[406655512,1772039438183,-500.0,0.00016999,2]
[406655513,1772039438194,-500.0,0.00016999,2]
[406655514,1772039438203,-500.0,0.00016999,2]
[406655515,1772039438213,-500.0,0.00016999,2]
[406655516,1772039438222,-500.0,0.00016999,2]
[406655517,1772039438231,-500.0,0.00016999,2]
[406655518,1772039438244,-500.0,0.00016999,2]
[406655519,1772039438253,-210.41055094,0.00016999,2]
[406655520,1772039438262,-500.0,0.00016999,2]
[406655521,1772039438271,-500.0,0.00016999,2]
[406655522,1772039438282,-500.0,0.00016999,2]
[406655523,1772039438291,-500.0,0.00016999,2]
[406655524,1772039438300,-500.0,0.00016999,2]
[406655525,1772039438309,-500.0,0.00016999,2]
[406655526,1772039438318,-500.0,0.00016999,2]
[406655527,1772039438328,-500.0,0.00016999,2]
[406655528,1772039438337,-500.0,0.00016999,2]
[406655529,1772039438347,-287.3805946,0.00016999,2]
[406655530,1772039438357,-500.0,0.00016999,2]
[406655531,1772039438366,-379.9224231,0.00016999,2]
[406655532,1772039438375,-5840.37223899,0.00017,2]
[406655533,1772039438385,-420.0,0.00017162,2]
[406655534,1772039438394,-640.53,0.0001724,2]
[406655535,1772039438407,-1395.07499894,0.00017331,2]
[406655536,1772039438416,-16928.40876567,0.0001734,2]
[406655537,1772039438425,-2150.35599502,0.000176,2]
[406655538,1772039438434,-600.0,0.00017951,2]
[406655539,1772039438444,-149647.6594308,0.00017997,2]
[406655540,1772039438455,-1962.68118874,0.00017997,2]
[406655795,1772039442751,-6830.0,0.00017997,2]
[406655801,1772039443406,-13463.83958672,0.00017997,2]
[406655802,1772039443418,-179781.17543534,0.00017997,2]
[406655807,1772039443926,-149941.220253,0.00017997,2]
[406655808,1772039443938,-451.14692644,0.00017999,2]
[406655809,1772039443947,-127761.55535499,0.00018,2]
[406655810,1772039443957,-204.0,0.00018268,2]
[406655811,1772039443966,-263.07627764,0.00018406,2]
[406655812,1772039443976,-209.40437684,0.00018406,2]
[406655813,1772039443986,-217.15233878,0.00018406,2]
[406655814,1772039443996,-225.18697532,0.00018406,2]
[406655815,1772039444005,-233.51889341,0.00018406,2]
[406655816,1772039444015,-242.15909246,0.00018406,2]
[406655817,1772039444024,-251.11897888,0.00018406,2]
[406655818,1772039444034,-151.0,0.00018406,2]
[406655819,1772039444043,-260.4103811,0.00018406,2]
[406655820,1772039444053,-151.0,0.00018406,2]
[406655821,1772039444063,-270.0455652,0.00018406,2]
[406655822,1772039444072,-216.00316339,0.00018406,2]
[406655823,1772039444082,-280.03725112,0.00018406,2]
[406655824,1772039444091,-254.05616394,0.00018406,2]
[406655825,1772039444102,-1957.856,0.00018406,2]
[406655826,1772039444113,-500.0,0.00018406,2]
[406655827,1772039444122,-500.0,0.00018406,2]
[406655828,1772039444131,-500.0,0.00018406,2]
[406655829,1772039444142,-500.0,0.00018406,2]
[406655830,1772039444151,-471.69092783,0.00018406,2]
[406655831,1772039444161,-500.0,0.00018406,2]
[406655832,1772039444170,-500.0,0.00018406,2]
[406655833,1772039444179,-500.0,0.00018406,2]
[406655834,1772039444189,-500.0,0.00018406,2]
[406655835,1772039444198,-500.0,0.00018406,2]
[406655836,1772039444208,-500.0,0.00018406,2]
[406655837,1772039444218,-500.0,0.00018406,2]
[406655838,1772039444228,-500.0,0.00018406,2]
[406655839,1772039444238,-500.0,0.00018406,2]
[406655840,1772039444248,-500.0,0.00018406,2]
[406655841,1772039444259,-500.0,0.00018406,2]
[406655842,1772039444269,-321.21933761,0.00018406,2]
[406655843,1772039444280,-280.181,0.00018453,2]
[406655844,1772039444292,-2030.296672,0.00018461,2]
[406655845,1772039444301,-2105.41764886,0.00018516,2]
[406655846,1772039444312,-2183.31810187,0.00018571,2]
[406655847,1772039444322,-1155.96865572,0.00018626,2]
[406655848,1772039444331,-1395.0749989,0.00018763,2]
[406655849,1772039444340,-587.0,0.0001877,2]
[406655850,1772039444350,-11288.48401162,0.0001899,2]
[406655851,1772039444360,-500.0,0.00019,7]
[406655852,1772039444369,-266.18,0.00019,7]
[406655853,1772039444379,-500.0,0.00019178,2]
[406655854,1772039444389,-500.0,0.00019178,2]
[406655855,1772039444399,-500.0,0.00019178,2]
[406655856,1772039444409,-500.0,0.00019178,2]
[406655857,1772039444419,-500.0,0.00019178,2]
[406655858,1772039444429,-500.0,0.00019178,2]
[406655859,1772039444439,-500.0,0.00019178,2]
[406655860,1772039444449,-500.0,0.00019178,2]
[406655861,1772039444458,-500.0,0.00019178,2]
[406655862,1772039444467,-500.0,0.00019178,2]
[406655863,1772039444479,-500.0,0.00019178,2]
[406655864,1772039444489,-500.0,0.00019178,2]
[406655865,1772039444500,-500.0,0.00019178,2]
[406655866,1772039444511,-500.0,0.00019178,2]
[406655867,1772039444521,-500.0,0.00019178,2]
[406655868,1772039444532,-500.0,0.00019178,2]
[406655869,1772039444542,-500.0,0.00019178,2]
[406655870,1772039444552,-500.0,0.00019178,2]
[406655871,1772039444562,-500.0,0.00019178,2]
[406655872,1772039444571,-500.0,0.00019178,2]
[406655873,1772039444581,-500.0,0.00019178,2]
[406655874,1772039444592,-500.0,0.00019178,2]
[406655875,1772039444601,-500.0,0.00019178,2]
[406655876,1772039444610,-500.0,0.00019178,2]
[406655877,1772039444620,-500.0,0.00019178,2]
[406655878,1772039444629,-500.0,0.00019178,2]
[406655879,1772039444639,-500.0,0.00019178,2]
[406655880,1772039444651,-500.0,0.00019178,2]
[406655881,1772039444661,-500.0,0.00019178,2]
[406655882,1772039444671,-500.0,0.00019178,2]
[406655883,1772039444680,-500.0,0.00019178,2]
[406655884,1772039444692,-500.0,0.00019178,2]
[406655885,1772039444702,-500.0,0.00019178,2]
[406655886,1772039444712,-500.0,0.00019178,2]
[406655887,1772039444722,-500.0,0.00019178,2]
[406655888,1772039444734,-500.0,0.00019178,2]
[406655889,1772039444744,-500.0,0.00019178,2]
[406655890,1772039444759,-339.66641955,0.00019178,2]
[406655891,1772039444769,-500.0,0.00019178,2]
[406655892,1772039444778,-500.0,0.00019178,2]
[406655893,1772039444788,-500.0,0.00019178,2]
[406655894,1772039444798,-500.0,0.00019178,2]
[406655895,1772039444808,-500.0,0.00019178,2]
[406655896,1772039444817,-500.0,0.00019178,2]
[406655897,1772039444827,-500.0,0.00019178,2]
[406655898,1772039444837,-500.0,0.00019178,2]
[406655899,1772039444847,-500.0,0.00019178,2]
[406655900,1772039444856,-500.0,0.00019178,2]
[406655901,1772039444866,-500.0,0.00019178,2]
[406655902,1772039444875,-600.0,0.00019178,2]
[406655903,1772039444885,-500.0,0.00019178,2]
[406655904,1772039444894,-500.0,0.00019178,2]
[406655905,1772039444904,-500.0,0.00019178,2]
[406655906,1772039444913,-318.96293889,0.00019291,2]
[406655907,1772039444922,-291.69099604,0.00019291,2]
[406655908,1772039444931,-364.95944589,0.00019291,2]
[406655909,1772039444941,-656.92700261,0.00019291,2]
[406655910,1772039444950,-1167.87022686,0.00019291,2]
[406655911,1772039444960,-1824.79722947,0.00019291,2]
[406655912,1772039444969,-309.67210743,0.00019291,2]
[406655913,1772039444978,-557.40979337,0.00019291,2]
[406655914,1772039444988,-990.95074377,0.00019334,2]
[406655915,1772039445000,-333.36113833,0.00019335,2]
[406655916,1772039445010,-150.169,0.00019375,2]
[406655917,1772039445020,-2180.0,0.00019375,2]
[406655918,1772039445030,-430.0,0.00019375,2]
[406655919,1772039445040,-728.0,0.00019375,2]
[406655920,1772039445049,-168.0,0.00019401,2]
[406655921,1772039445059,-377.84036751,0.00019606,3]
[406655922,1772039445068,-168.0,0.00019687,2]
[406655923,1772039445078,-720.0,0.00019746,2]
[406655924,1772039445087,-7378.2270283,0.00019794,2]
[406655925,1772039445096,-1449.2231248,0.00019794,2]
[406655926,1772039445106,-3398.4277769,0.00019794,2]
[406655927,1772039445116,-554.41422631,0.000198,2]
[406655928,1772039445125,-16751.7266512,0.000198,2]
[406655929,1772039445134,-168.0,0.00019858,2]
[406655930,1772039445144,-1978.626928,0.0001988,5]
[406655931,1772039445153,-309.082,0.000199,2]
[406655932,1772039445162,-1000.0,0.000199,5]
[406655933,1772039445172,-11928.50723475,0.000199,2]
[406655934,1772039445181,-1000.0,0.0001992,5]
[406655935,1772039445191,-1000.0,0.0001994,5]
[406655936,1772039445200,-374.34078752,0.00019945,2]
[406655937,1772039445209,-1000.0,0.0001996,5]
[406655938,1772039445218,-1000.0,0.0001998,5]
[406655939,1772039445228,-1282116.12206974,0.0002,2]
[406655940,1772039445238,-942.0,0.0002,2]
[406655941,1772039445251,-1172897.9188169,0.0002,2]
[406655942,1772039445261,-19323.21473802,0.0002,2]
[406655943,1772039445270,-507.38673283,0.0002,2]
[406655944,1772039445281,-108063.50025612,0.0002,2]
[406655945,1772039445303,-1954.0,0.0002,2]
[406655946,1772039445315,-778.35359997,0.0002,2]
[406655947,1772039445327,-2568.17,0.0002,2]
[406655948,1772039445339,-3866.24992679,0.0002,2]
[406655949,1772039445351,-40625.34771479,0.0002,2]
[406655956,1772039445583,-23.11464531,0.0002,2]
[406655958,1772039445959,-174.87366067,0.00019969,3]
[406655959,1772039445968,-6113.40441493,0.0002,2]
[406655960,1772039445980,-610.99505787,0.0002,2]
[406655967,1772039745374,-853.139,0.00016117,120]
[406655968,1772039745409,-161.0,0.000204,120]
[406655969,1772039745439,-33480.33886878,0.00025,30]
[406655970,1772039745464,-200.0,0.00027,120]
[406655971,1772039745488,-200.0,0.00027,120]
[406655972,1772039745517,-200.0,0.00027,120]
[406655973,1772039745543,-218.93939,0.00027,120]
[406655974,1772039745568,-1000.0,0.00027151,30]
[406655975,1772039745592,-1000.0,0.00027397,120]
[406655976,1772039745617,-211.88637224,0.00027653,120]
[406655977,1772039745642,-158.0,0.00027935,30]
[406655978,1772039745666,-1035.0,0.00028,30]
[406655979,1772039745691,-188.0,0.00028083,30]
[406655980,1772039745716,-170.0,0.00028458,30]
[406655981,1772039745744,-199.0,0.00028932,30]
[406655982,1772039745770,-294.0,0.00028973,30]
[406655983,1772039745795,-274.0,0.00029219,30]
[406655984,1772039745821,-154.0,0.00029225,30]
[406655985,1772039745846,-155.0,0.0002951,30]
[406655986,1772039745871,-12325.967207,0.00029613,30]
[406655987,1772039745895,-1000.0,0.00029866,30]
[406655988,1772039745920,-244.0,0.00029866,30]
[406655989,1772039745944,-1000.0,0.0003,30]
[406655990,1772039745967,-1397.79325035,0.0003,30]
[406655991,1772039745990,-10169.22833862,0.0003,30]
[406655992,1772039746016,-1967.37,0.0003,30]
[406655993,1772039746040,-1007.6,0.0003,30]
[406655994,1772039746065,-1000.0,0.00030137,120]
[406655995,1772039746088,-6452.50200546,0.0003015,120]
[406655996,1772039746115,-214.0,0.00030614,30]
[406655997,1772039746138,-1007.6,0.00030667,30]
[406655998,1772039746164,-201.0,0.00030712,41]
[406655999,1772039746188,-159.46,0.00030766,30]
[406656000,1772039746212,-196.0,0.00030904,120]
[406656001,1772039746236,-158.0,0.00031,30]
[406656002,1772039746260,-158.0,0.00031,30]
[406656003,1772039746285,-618.6068769,0.00031,30]
[406656004,1772039746310,-183.0,0.00031046,120]
[406656005,1772039746334,-150.0,0.00031151,30]
[406656006,1772039746358,-1007.6,0.00031333,30]
[406656007,1772039746382,-170.6278,0.000314,120]
[406656008,1772039746407,-158.0,0.00031539,30]
[406656009,1772039746431,-300.0,0.00031561,30]
[406656010,1772039746455,-300.0,0.00031561,30]
[406656011,1772039746478,-249.0,0.00031561,30]
[406656012,1772039746502,-1007.6,0.00032,30]
[406656013,1772039746568,-1000.0,0.00032,30]
[406656014,1772039746592,-189.0,0.00032088,30]
[406656015,1772039746618,-250.2551,0.000323,120]
[406656016,1772039746643,-241.0,0.00032352,30]
[406656017,1772039746667,-153.0,0.0003264,30]
[406656018,1772039746688,-1007.6,0.00032667,120]
[406656019,1772039746711,-600.0,0.00032767,34]
[406656020,1772039746737,-1000.0,0.00032853,30]
[406656021,1772039746766,-492.0,0.00032853,30]
[406656022,1772039746790,-1000.0,0.00032877,120]
[406656023,1772039746814,-174.0,0.00032904,56]
[406656024,1772039746840,-164.0,0.0003291,30]
[406656025,1772039746863,-247.16891232,0.00033,120]
[406656026,1772039746886,-542.11424494,0.00033,120]
[406656027,1772039746909,-11796.01086791,0.00033,30]
[406656028,1772039746934,-185.55,0.00033052,30]
[406656029,1772039746958,-254.73626641,0.000332,117]
[406656030,1772039746983,-420.0,0.00033272,120]
[406656031,1772039747007,-238.0,0.00033273,30]
[406656032,1772039747035,-1007.6,0.00033333,120]
[406656033,1772039747061,-200.0,0.00033533,120]
[406656034,1772039747085,-200.0,0.00033533,120]
[406656035,1772039747110,-166.0,0.00033533,120]
[406656036,1772039747134,-159.46,0.0003365,30]
[406656037,1772039747158,-11509.0,0.000337,30]
[406656038,1772039747181,-1007.6,0.00034,120]
[406656039,1772039747207,-160.0,0.00034374,120]
[406656040,1772039747231,-1007.6,0.00034667,120]
[406656041,1772039747257,-278.32,0.00034954,30]
[406656042,1772039747284,-1950.0,0.00035,30]
[406656043,1772039747308,-2437.07353088,0.00035,40]
[406656044,1772039747331,-288.0,0.00035,120]
[406656045,1772039747354,-14929.0,0.00035,120]
[406656046,1772039747379,-8312.0,0.00035,120]
[406656047,1772039747402,-1000.0,0.00035,30]
[406656048,1772039747427,-447.0,0.00035272,120]
[406656049,1772039747451,-1007.6,0.00035333,120]
[406656050,1772039747476,-156.0,0.00035353,120]
[406656051,1772039747500,-1000.0,0.00035616,120]
[406656052,1772039747527,-187.0,0.00035876,30]
[406656053,1772039747550,-4298.84145661,0.00036,30]
[406656054,1772039747573,-158.0,0.00036,120]
[406656055,1772039747597,-158.0,0.00036,120]
[406656056,1772039747623,-1000.0,0.00036138,30]
[406656057,1772039747649,-791.0,0.00036138,30]
[406656058,1772039747686,-169.0,0.00036192,86]
[406656059,1772039747713,-159.46,0.00036533,60]
[406656060,1772039747749,-371.1,0.00036855,30]
[406656061,1772039747778,-171.0,0.000369,120]
[406656062,1772039747806,-151.0,0.000369,30]
[406656063,1772039747833,-5433.8641624,0.00036909,30]
[406656064,1772039747860,-1000.0,0.00037,30]
[406656065,1772039747886,-11633.26345808,0.00037,120]
[406656066,1772039747913,-474.0,0.00037272,120]
[406656067,1772039747940,-1136.1723229,0.00037537,30]
[406656068,1772039747965,-206.76937,0.000376,120]
[406656069,1772039747990,-200.0,0.000376,120]
[406656070,1772039748018,-2730.42759527,0.00037627,30]
[406656071,1772039748044,-150.0,0.00037885,120]
[406656072,1772039748071,-5732.99435001,0.000379,30]
[406656073,1772039748096,-238.68144292,0.00038,120]
[406656074,1772039748122,-3807.0,0.00038,30]
[406656075,1772039748148,-500.0,0.00038,120]
[406656076,1772039748173,-37490.17137973,0.00038,120]
[406656077,1772039748198,-1000.0,0.00038356,120]
[406656078,1772039748224,-409.1,0.00038559,30]
[406656079,1772039748251,-1067.20015163,0.00038646,30]
[406656080,1772039748278,-171.0,0.00038745,120]
[406656081,1772039748306,-463.87,0.00038756,30]
[406656082,1772039748331,-1501.47977431,0.00039,30]
[406656083,1772039748357,-500.0,0.00039,120]
[406656084,1772039748381,-373091.66346667,0.00039,120]
[406656085,1772039748408,-151.0,0.0003912,30]
[406656086,1772039748434,-156.75,0.00039153,120]
[406656087,1772039748459,-409.1,0.00039223,30]
[406656088,1772039748485,-156.76723538,0.00039253,120]
[406656089,1772039748509,-501.0,0.00039272,120]
[406656090,1772039748536,-159.46,0.00039416,60]
[406656091,1772039748561,-2987.86563988,0.00039425,30]
[406656092,1772039748585,-28760.590151,0.00039484,60]
[406656093,1772039748611,-564.29763244,0.00039612,30]
[406656094,1772039748642,-1000.0,0.00039752,60]
[406656095,1772039748666,-1000.0,0.00039752,60]
[406656096,1772039748690,-597.11,0.00039772,120]
[406656097,1772039748716,-6261.87085128,0.00039881,30]
[406656098,1772039748746,-409.1,0.00039886,30]
[406656099,1772039748921,-25322.58024437,0.000399,30]
[406656100,1772039748946,-9830.46989224,0.0004,120]
[406656101,1772039748973,-289.51150464,0.0004,30]
[406656102,1772039749002,-168.13145157,0.0004,120]
[406656103,1772039749028,-235.95798553,0.0004,30]
[406656104,1772039749051,-296.75831368,0.0004,120]
[406656105,1772039749084,-310.22999543,0.0004,120]
[406656106,1772039749110,-158.38708532,0.0004,30]
[406656107,1772039749134,-500.0,0.0004,120]
[406656108,1772039749157,-1097.0,0.0004,30]
[406656109,1772039749179,-300.0,0.0004,30]
[406656110,1772039749202,-273.0,0.0004,30]
[406656111,1772039749226,-396.58638541,0.0004,90]
[406656112,1772039749248,-100869.17885278,0.0004,120]
[406656113,1772039749272,-2500.0,0.0004,120]
[406656114,1772039749295,-2500.0,0.0004,120]
[406656115,1772039749321,-2500.0,0.0004,120]
[406656116,1772039749348,-500.0,0.0004,120]
[406656117,1772039749373,-2500.0,0.0004,120]
[406656118,1772039749397,-7515.92586154,0.0004,120]
[406656119,1772039749422,-2000.0,0.0004,120]
[406656120,1772039749445,-284.36926891,0.000401,30]
[406656121,1772039749468,-574.7749,0.000401,60]
[406656122,1772039749492,-150.0,0.00040139,120]
[406656123,1772039749516,-2625.0,0.000405,120]
[406656124,1772039749539,-2500.0,0.000405,120]
[406656125,1772039749561,-2500.0,0.000405,120]
[406656126,1772039749583,-2625.0,0.000405,120]
[406656127,1772039749606,-409.1,0.0004055,120]
[406656128,1772039749629,-556.64,0.00040657,30]
[406656129,1772039749652,-171.0,0.00040682,120]
[406656130,1772039749676,-599.85,0.00040779,120]
[406656131,1772039749701,-1163.74753586,0.00040809,30]
[406656132,1772039749726,-597.11,0.00040819,120]
[406656133,1772039749749,-170.6278,0.0004082,120]
[406656134,1772039749775,-6410.41991519,0.00040872,30]
[406656135,1772039749800,-200.0,0.00040913,120]
[406656136,1772039749824,-508.68,0.00040993,120]
[406656137,1772039749848,-517.8,0.00040993,120]
[406656138,1772039749872,-487.0,0.00040993,120]
[406656139,1772039749896,-411.45,0.00040993,120]
[406656140,1772039749921,-1048.6273225,0.00041,120]
[406656141,1772039749945,-297.0,0.00041,120]
[406656142,1772039749968,-2756.25,0.00041,120]
[406656143,1772039749992,-500.0,0.00041,120]
[406656144,1772039750017,-2756.25,0.00041,120]
[406656145,1772039750043,-5027.64,0.00041095,120]
[406656146,1772039750066,-1546.54421031,0.00041096,120]
[406656147,1772039750091,-843.0,0.00041096,120]
[406656148,1772039750115,-50000.0,0.00041096,120]
[406656149,1772039750139,-26640.48,0.00041096,120]
[406656150,1772039750164,-1674.439489,0.00041096,120]
[406656151,1772039750192,-1674.439489,0.00041096,120]
[406656152,1772039750218,-1674.439489,0.00041096,120]
[406656153,1772039750243,-1674.439489,0.00041096,120]
[406656154,1772039750269,-1674.439489,0.00041096,120]
[406656155,1772039750295,-1674.439489,0.00041096,120]
[406656156,1772039750321,-1674.439489,0.00041096,120]
[406656157,1772039750346,-1674.439489,0.00041096,120]
[406656158,1772039750372,-1674.439489,0.00041096,120]
[406656159,1772039750397,-1674.439489,0.00041096,120]
[406656160,1772039750421,-1674.439489,0.00041096,120]
[406656161,1772039750446,-1674.439489,0.00041096,120]
[406656162,1772039750469,-1674.439489,0.00041096,120]
[406656163,1772039750493,-1674.439489,0.00041096,120]
[406656164,1772039750520,-1674.439489,0.00041096,120]
[406656165,1772039750545,-1674.439489,0.00041096,120]
[406656166,1772039750572,-1674.439489,0.00041096,120]
[406656167,1772039750597,-1674.439489,0.00041096,120]
[406656168,1772039750622,-1674.439489,0.00041096,120]
[406656169,1772039750647,-1674.439498,0.00041096,120]
[406656170,1772039750672,-275.32871619,0.00041132,120]
[406656171,1772039750696,-920.8804,0.00041178,30]
[406656172,1772039750722,-409.1,0.00041213,120]
[406656173,1772039750751,-3627.96762841,0.00041223,30]
[406656174,1772039750778,-528.0,0.00041272,120]
[406656175,1772039750805,-151.0,0.0004134,120]
[406656176,1772039750832,-353.0,0.000414,120]
[406656177,1772039750858,-1263.81402655,0.00041401,30]
[406656178,1772039750886,-583.17453254,0.00041401,30]
[406656179,1772039751144,-2894.06,0.000415,120]
[406656180,1772039751171,-2894.06,0.000415,120]
[406656181,1772039751197,-843.0,0.00041644,120]
[406656182,1772039751221,-155.0,0.00041671,120]
[406656183,1772039751246,-461.65,0.000417,30]
[406656184,1772039751270,-2521.864661,0.000418,90]
[406656185,1772039751296,-6898.69779158,0.00041863,30]
[406656186,1772039751321,-597.11,0.00041865,120]
[406656187,1772039751346,-409.1,0.00041877,120]
[406656188,1772039751370,-541.7368,0.00041892,30]
[406656189,1772039751394,-874.4440649,0.00041895,120]
[406656190,1772039751418,-184.23,0.0004195,120]
[406656191,1772039751442,-288.15974119,0.00042,120]
[406656192,1772039751467,-500.0,0.00042,120]
[406656193,1772039751491,-3038.76,0.00042,120]
[406656194,1772039751515,-500.0,0.00042,120]
[406656195,1772039751540,-3038.76,0.00042,120]
[406656196,1772039751566,-372.61507814,0.00042042,30]
[406656197,1772039751594,-599.85,0.00042161,120]
[406656198,1772039751620,-508.68,0.00042189,120]
[406656199,1772039751644,-843.0,0.00042192,120]
[406656200,1772039751682,-159.46,0.00042299,60]
[406656201,1772039751706,-157.83,0.00042299,30]
[406656202,1772039751734,-607.3302322,0.00042299,30]
[406656203,1772039751759,-189.4258536,0.00042299,30]
[406656204,1772039751784,-165985.9774,0.0004244,30]
[406656205,1772039751809,-193.44,0.0004245,120]